bitfinex/quotes_SOLUSD_20240702
["timestamp","ask_amount","ask_price","bid_price","bid_amount"]
[1719927741768,1.65119087,151.42,151.27,100.0]
[1719927741986,6.6049,151.41,151.29,100.0]
[1719927742293,6.6041,151.42,151.32,100.0]
[1719927742594,16.6511,151.43,151.34,100.0]
[1719927742786,6.6566,151.44,151.35,0.93685612]
[1719927742975,16.1042,151.48,151.34,100.0]
[1719927742976,22.7458,151.48,151.34,100.0]
[1719927743176,22.7458,151.48,151.32,100.0]
[1719927743507,22.7458,151.48,151.28,100.0]
[1719927743803,6.6064,151.37,151.26,100.0]
[1719927744102,6.6068,151.36,151.26,100.0]
[1719927744266,6.6416,151.38,151.28,100.0]
[1719927744467,6.6416,151.42,151.28,101.98737757]
[1719927744789,6.6416,151.42,151.28,1.98737757]
[1719927745096,6.6059,151.38,151.27,100.0]
[1719927745273,6.6059,151.38,151.25,100.0]
[1719927745274,13.53919846,151.42,151.29,100.0]
[1719927745478,13.53919846,151.42,151.31,100.0]
[1719927745692,6.605,151.4,151.32,20.0]
[1719927745873,6.6062,151.38,151.25,100.0]
[1719927746066,6.6063,151.37,151.26,1.98764035]
[1719927746272,1.65150069,151.41,151.29,100.0]
[1719927746473,1.65150069,151.41,151.26,21.98764035]
[1719927746474,1.65150069,151.41,151.27,100.0]
[1719927746688,6.6416,151.42,151.3,100.0]
[1719927746890,6.6059,151.38,151.28,1.98737757]
[1719927747122,8.29305742,151.42,151.3,100.0]
[1719927747393,6.6047,151.41,151.3,100.0]
[1719927747590,6.6049,151.41,151.31,20.0]
[1719927747892,6.6416,151.42,151.33,100.0]
[1719927748099,6.6416,151.42,151.31,20.0]
[1719927748100,1.65103537,151.46,151.35,100.0]
[1719927748307,7.67132427,151.47,151.36,20.0]
[1719927748595,7.67132427,151.47,151.3,100.0]
[1719927748596,6.6046,151.41,151.3,100.0]
[1719927748772,6.6044,151.42,151.32,100.0]
[1719927748969,6.6036,151.44,151.33,20.0]
[1719927749190,6.0206,151.47,151.34,100.0]
[1719927749191,7.6716097,151.47,151.34,100.0]
[1719927749499,1.37438956,151.46,151.28,101.98737757]
[1719927749675,1.65141046,151.45,151.28,101.98737757]
[1719927749870,1.65141046,151.45,151.3,100.0]
[1719927750073,1.65141046,151.45,151.31,20.0]
[1719927750598,34.66771046,151.45,151.31,20.0]
[1719927750806,6.2495,151.38,151.27,6.6416]
[1719927750975,6.6063,151.37,151.27,6.6416]
[1719927751173,12.8555,151.38,151.27,6.6416]
[1719927751372,6.2495,151.38,151.28,100.0]
[1719927751591,1.6515479,151.37,151.24,100.0]
[1719927751796,1.6515479,151.37,151.25,16.5113]
[1719927752080,6.6064,151.37,151.26,20.0]
[1719927752295,6.2495,151.38,151.27,100.0]
[1719927752476,14.50717194,151.38,151.28,20.0]
[1719927752674,1.65167759,151.37,151.28,20.0]
[1719927752880,1.65167759,151.37,151.24,1.98790319]
[1719927753078,6.6076,151.34,151.24,1.98790319]
[1719927753402,17.91372255,151.36,151.23,100.0]
[1719927753900,6.2495,151.38,151.29,100.0]
[1719927754101,16.3947,151.41,151.31,100.0]
[1719927754393,23.79022362,151.46,151.33,100.0]
[1719927754623,30.39262362,151.46,151.35,100.0]
[1719927754807,6.6028,151.45,151.35,100.0]
[1719927754972,6.6045,151.41,151.31,100.0]
[1719927755281,1.65083752,151.44,151.32,20.0]
[1719927755481,6.6042,151.42,151.32,20.0]
[1719927755797,6.6037,151.43,151.32,20.0]
[1719927756007,1.65113555,151.45,151.33,100.93746282]
[1719927756294,22.139,151.46,151.35,100.0]
[1719927756495,22.139,151.46,151.36,20.93655814]
[1719927757102,6.6012,151.49,151.36,20.93655814]
[1719927757299,14.57132836,151.5,151.38,100.0]
[1719927757481,7.97052836,151.5,151.39,20.0]
[1719927757691,0.03926701,151.5,151.4,100.0]
[1719927757887,0.03926701,151.5,151.41,20.0]
[1719927758099,1.68948642,151.5,151.41,20.0]
[1719927758300,0.03926701,151.5,151.44,100.0]
[1719927758497,0.03926701,151.5,151.45,20.93429317]
[1719927759005,0.03926701,151.5,151.47,100.0]
[1719927759211,0.03926701,151.5,151.48,20.0]
[1719927759995,0.03926701,151.5,151.49,0.93299804]
[1719927760308,0.03926701,151.5,151.49,20.93278155]
[1719927760807,0.03926701,151.5,151.49,40.05]
[1719927761183,0.03926701,151.5,151.49,140.05]
[1719927761713,0.03926701,151.5,151.49,170.05]
[1719927762083,0.03926701,151.5,151.49,50.0]
[1719927762307,0.03926701,151.5,151.49,30.0]
[1719927762525,0.03926701,151.5,151.45,100.0]
[1719927762684,0.03926701,151.5,151.47,200.0]
[1719927762888,0.03926701,151.5,151.47,100.0]
[1719927763117,0.03926701,151.5,151.46,30.0]
[1719927763290,0.03926701,151.5,151.45,100.0]
[1719927763606,0.03926701,151.5,151.49,100.0]
[1719927763813,0.03926701,151.5,151.49,200.93253106]
[1719927764519,0.03926701,151.5,151.49,200.0]
[1719927764693,0.03926701,151.5,151.49,220.0]
[1719927765192,0.03926701,151.5,151.49,240.05]
[1719927765390,0.8518424,151.55,151.54,100.0]
[1719927765605,0.8518424,151.55,151.49,120.0]
[1719927765606,0.8518424,151.55,151.52,100.0]
[1719927765795,0.8518424,151.55,151.53,20.0]
[1719927767114,0.8518424,151.55,151.51,20.0]
[1719927767282,0.8518424,151.55,151.52,100.9326015]
[1719927767484,0.8518424,151.55,151.53,20.0]
[1719927767888,0.8518424,151.55,151.53,120.93228625]
[1719927768117,0.8518424,151.55,151.54,100.0]
[1719927768294,0.165,151.64,151.54,120.0]
[1719927768607,0.165,151.64,151.55,20.0]
[1719927769089,0.165,151.64,151.56,100.0]
[1719927769289,0.165,151.64,151.61,100.0]
[1719927769509,0.165,151.64,151.56,36.96]
[1719927769510,0.165,151.64,151.59,100.0]
[1719927769687,0.165,151.64,151.6,100.0]
[1719927769892,0.165,151.64,151.56,36.96]
[1719927769893,0.165,151.64,151.56,100.0]
[1719927770191,0.165,151.64,151.57,20.0]
[1719927770192,0.4706168,151.64,151.57,20.0]
[1719927770415,0.4706168,151.64,151.58,100.0]
[1719927770715,0.4706168,151.64,151.59,100.0]
[1719927771012,6.4829,151.62,151.53,8.534871]
[1719927771208,6.4829,151.62,151.54,100.0]
[1719927771787,0.4706168,151.64,151.57,100.0]
[1719927772007,0.4706168,151.64,151.59,100.0]
[1719927772498,0.4706168,151.64,151.61,100.0]
[1719927772705,0.4706168,151.64,151.6,20.0]
[1719927773709,0.4706168,151.64,151.58,20.0]
[1719927774117,0.4706168,151.64,151.6,100.0]
[1719927774501,0.4706168,151.64,151.62,100.0]
[1719927774898,0.4706168,151.64,151.6,100.0]
[1719927775103,0.4706168,151.64,151.61,20.0]
[1719927775414,2.0,151.67,151.62,100.0]
[1719927775721,2.0,151.67,151.65,100.0]
[1719927776396,2.0,151.67,151.66,120.0]
[1719927776794,2.0,151.67,151.66,139.84]
[1719927777159,2.0,151.67,151.66,120.0]
[1719927777522,2.0,151.67,151.66,196.50620205]
[1719927777705,0.37196775,151.76,151.75,100.0]
[1719927778189,16.1821,151.9,151.81,100.0]
[1719927778388,22.5945,151.98,151.85,100.0]
[1719927778592,6.5806,151.97,151.85,100.0]
[1719927778890,16.4205,151.98,151.85,100.0]
[1719927779125,1.64513121,151.97,151.85,100.0]
[1719927779413,6.5806,151.97,151.86,100.0]
[1719927779612,0.3781655,151.92,151.87,100.0]
[1719927779817,0.3781655,151.92,151.89,100.0]
[1719927780023,0.3781655,151.92,151.82,29.92829572]
[1719927780024,0.3781655,151.92,151.91,100.0]
[1719927780194,0.3781655,151.92,151.83,100.0]
[1719927780195,0.3781655,151.92,151.9,1.97926582]
[1719927780395,0.3781655,151.92,151.91,100.0]
[1719927780622,0.3781655,151.92,151.9,1.97926582]
[1719927781123,0.3781655,151.92,151.84,100.0]
[1719927781330,0.3781655,151.92,151.89,100.0]
[1719927782424,0.3781655,151.92,151.91,100.0]
[1719927783493,0.3781655,151.92,151.9,1.97926582]
[1719927784111,0.3781655,151.92,151.86,100.0]
[1719927784318,0.3781655,151.92,151.87,20.0]
[1719927784523,0.3781655,151.92,151.87,100.0]
[1719927784824,0.3781655,151.92,151.83,100.0]
[1719927785020,0.3781655,151.92,151.85,100.0]
[1719927785227,0.3781655,151.92,151.87,100.0]
[1719927785396,0.3781655,151.92,151.84,100.0]
[1719927785598,0.3781655,151.92,151.86,100.0]
[1719927787031,0.3781655,151.92,151.84,101.98004794]
[1719927787318,0.3781655,151.92,151.84,1.98004794]
[1719927787525,0.3781655,151.92,151.74,100.0]
[1719927787526,6.5864,151.83,151.74,100.0]
[1719927787731,6.5871,151.82,151.72,100.0]
[1719927787897,16.4621,151.87,151.72,101.98161402]
[1719927788103,6.5864,151.83,151.75,100.0]
[1719927788300,6.5864,151.83,151.73,100.0]
[1719927788506,1.64666888,151.86,151.73,100.0]
[1719927788703,1.64666888,151.86,151.76,100.0]
[1719927788906,49.3764,151.9,151.76,100.0]
[1719927788907,1.64642986,151.89,151.76,100.0]
[1719927789114,16.4612,151.88,151.76,100.0]
[1719927789304,16.4631,151.86,151.75,100.0]
[1719927789509,6.5864,151.83,151.75,100.0]
[1719927789922,1.64648712,151.85,151.72,101.98161402]
[1719927790122,6.5873,151.81,151.72,101.98161402]
[1719927790424,6.5884,151.79,151.72,1.98161402]
[1719927790610,6.5874,151.81,151.72,101.98161402]
[1719927790921,8.25320803,151.83,151.72,101.98161402]
[1719927790922,6.6063,151.83,151.72,101.98161402]
[1719927791125,1.64685605,151.87,151.78,100.0]
[1719927791302,6.0053,151.89,151.76,100.0]
[1719927791303,6.585,151.86,151.76,100.0]
[1719927791502,7.6514653,151.89,151.76,100.0]
[1719927791710,6.0053,151.89,151.78,100.0]
[1719927791919,6.0053,151.89,151.8,100.0]
[1719927792150,6.0053,151.89,151.72,26.98161402]
[1719927792151,6.0053,151.89,151.78,100.0]
[1719927792328,7.65124737,151.89,151.79,20.0]
[1719927792527,24.11114737,151.89,151.77,20.0]
[1719927792742,6.5867,151.82,151.77,20.0]
[1719927792904,16.4622,151.87,151.75,120.0]
[1719927792905,18.10852343,151.87,151.75,120.0]
[1719927793108,16.4645,151.85,151.75,120.0]
[1719927793311,1.64646768,151.84,151.72,1.98161402]
[1719927793516,6.0053,151.89,151.72,1.98161402]
[1719927793517,16.4634,151.86,151.73,100.0]
[1719927793826,1.64655333,151.85,151.72,21.98161402]
[1719927794031,16.4656,151.84,151.72,1.98161402]
[1719927794208,16.4675,151.82,151.72,1.98161402]
[1719927794411,6.5894,151.76,151.69,100.0]
[1719927794619,6.4711,151.76,151.67,100.0]
[1719927794809,6.4711,151.76,151.65,100.0]
[1719927794810,8.11843881,151.76,151.65,100.0]
[1719927795135,8.11843881,151.76,151.63,118.116885]
[1719927795136,24.59265704,151.76,151.63,118.116885]
[1719927795427,24.59265704,151.76,151.63,100.0]
[1719927795634,24.59265704,151.76,151.61,100.0]
[1719927795810,6.592,151.7,151.61,100.0]
[1719927796006,24.59265704,151.76,151.59,126.399974]
[1719927796007,1.64809299,151.69,151.59,126.399974]
[1719927796211,43.4311,151.76,151.59,100.0]
[1719927796212,16.479,151.71,151.59,100.0]
[1719927796528,43.4311,151.76,151.59,101.9833134]
[1719927796529,6.5927,151.69,151.59,101.9833134]
[1719927796725,6.5921,151.7,151.59,101.9833134]
[1719927797029,1.64813287,151.75,151.62,100.0]
[1719927797208,6.5911,151.72,151.64,100.0]
[1719927797407,6.591,151.73,151.64,100.0]
[1719927797643,6.4711,151.76,151.67,100.0]
[1719927797808,8.11838832,151.76,151.65,100.0]
[1719927798007,13.0605,151.76,151.67,100.0]
[1719927798215,6.4711,151.76,151.66,100.0]
[1719927798409,8.1185459,151.76,151.64,100.0]
[1719927798629,6.5902,151.74,151.66,100.0]
[1719927798816,8.1185459,151.76,151.64,100.0]
[1719927799022,8.1185459,151.76,151.65,20.0]
[1719927799339,6.5899,151.75,151.65,120.0]
[1719927799911,6.5899,151.75,151.61,100.0]
[1719927799912,1.64748663,151.74,151.61,100.0]
[1719927800110,16.4749,151.75,151.61,100.0]
[1719927800111,6.5916,151.71,151.61,100.0]
[1719927800327,8.23871695,151.73,151.61,100.0]
[1719927800534,45.07901532,151.76,151.65,100.0]
[1719927800750,45.07901532,151.76,151.63,100.0]
[1719927800751,8.11901532,151.76,151.63,100.0]
[1719927800923,6.4711,151.76,151.69,100.0]
[1719927801237,16.4834,151.77,151.71,100.0]
[1719927801438,6.4674,151.82,151.69,100.0]
[1719927801439,6.5888,151.78,151.69,100.0]
[1719927801627,1.64705817,151.81,151.7,20.0]
[1719927801834,16.4697,151.8,151.7,20.0]
[1719927802130,6.5911,151.72,151.66,20.0]
[1719927802310,6.5915,151.71,151.64,1.98265945]
[1719927802523,6.5934,151.67,151.64,1.98265945]
[1719927802714,1.64786347,151.7,151.64,1.98265945]
[1719927802915,16.4793,151.71,151.64,1.98265945]
[1719927803221,1.64832964,151.73,151.64,1.98265945]
[1719927803436,1.64832964,151.73,151.63,100.0]
[1719927803437,31.14601776,151.74,151.63,100.0]
[1719927803616,31.14601776,151.74,151.66,100.0]
[1719927803617,22.9077,151.74,151.66,100.0]
[1719927804021,29.4979,151.74,151.64,100.0]
[1719927804226,29.4979,151.74,151.65,20.0]
[1719927804430,6.5908,151.73,151.65,20.0]
[1719927804633,22.9077,151.74,151.66,100.0]
[1719927804936,22.9077,151.74,151.68,100.0]
[1719927805139,22.9077,151.74,151.65,20.0]
[1719927805140,23.95847856,151.8,151.69,100.0]
[1719927805437,1.64703797,151.79,151.7,20.0]
[1719927805609,1.64703797,151.79,151.67,100.0]
[1719927805817,6.5898,151.75,151.67,100.0]
[1719927806022,18.11763797,151.79,151.68,20.0]
[1719927806023,6.5903,151.74,151.68,20.0]
[1719927806232,6.5903,151.74,151.66,20.0]
[1719927806413,18.11763797,151.79,151.66,20.0]
[1719927806615,18.11763797,151.79,151.64,20.0]
[1719927806813,6.5911,151.72,151.64,20.0]
[1719927807115,6.5911,151.72,151.63,101.9827902]
[1719927807319,1.64775443,151.76,151.63,101.9827902]
[1719927807742,6.5903,151.74,151.63,101.9827902]
[1719927808249,6.5918,151.71,151.6,100.0]
[1719927808426,1.6478234,151.73,151.6,100.0]
[1719927808427,1.6478234,151.73,151.61,20.0]
[1719927808630,6.5911,151.72,151.62,100.0]
[1719927808939,6.5911,151.72,151.63,20.0]
[1719927809241,6.5918,151.71,151.62,100.0]
[1719927809425,23.75386844,151.7,151.57,100.0]
[1719927809628,6.5937,151.66,151.57,100.0]
[1719927809933,18.13052809,151.69,151.55,16.4749]
[1719927810114,18.13052809,151.69,151.54,100.0]
[1719927810324,6.5953,151.63,151.53,0.5]
[1719927810510,18.13052809,151.69,151.54,100.0]
[1719927810841,6.5937,151.66,151.56,100.0]
[1719927811043,6.5937,151.66,151.53,0.5]
[1719927811044,1.6486201,151.65,151.53,0.5]
[1719927811341,38.60878748,151.68,151.53,0.5]
[1719927811549,6.5954,151.63,151.53,0.5]
[1719927811840,1.64893981,151.67,151.53,0.5]
[1719927812041,1.64893981,151.67,151.56,100.0]
[1719927812340,6.5936,151.67,151.56,100.0]
[1719927812539,6.5936,151.66,151.56,100.0]
[1719927812741,1.64853272,151.69,151.56,100.0]
[1719927812742,6.5933,151.67,151.56,100.0]
[1719927813035,1.64849236,151.69,151.57,121.98357511]
[1719927813247,6.5938,151.66,151.57,121.98357511]
[1719927813430,1.64864852,151.69,151.53,100.5]
[1719927813636,6.5958,151.62,151.53,100.5]
[1719927813940,6.5944,151.65,151.55,100.0]
[1719927814119,18.1298793,151.69,151.55,100.0]
[1719927814313,1.6488793,151.69,151.55,100.0]
[1719927814517,1.6488793,151.69,151.57,100.0]
[1719927815016,6.595,151.63,151.55,100.0]
[1719927815218,18.1302793,151.69,151.56,20.0]
[1719927815725,16.484,151.67,151.55,100.0]
[1719927816038,1.64873803,151.66,151.54,21.98396779]
[1719927816544,1.64873803,151.66,151.54,1.98396779]
[1719927816755,1.64874174,151.67,151.55,100.0]
[1719927817113,1.64874174,151.67,151.54,1.98396779]
[1719927817426,6.595,151.63,151.54,1.98396779]
[1719927817630,6.5947,151.64,151.54,1.98396779]
[1719927817814,1.64876521,151.66,151.54,1.98396779]
[1719927818021,6.5948,151.64,151.54,1.98396779]
[1719927818219,1.64876521,151.66,151.54,21.98396779]
[1719927818523,6.89517585,151.67,151.55,100.0]
[1719927818729,22.1059,151.7,151.6,100.0]
[1719927819239,6.5596,151.75,151.68,100.0]
[1719927819417,6.5596,151.75,151.61,1.98305177]
[1719927819745,6.594,151.66,151.61,1.98305177]
[1719927819928,1.64857038,151.68,151.61,1.98305177]
[1719927820131,6.5941,151.65,151.54,100.0]
[1719927820529,6.5936,151.67,151.54,100.0]
[1719927820727,1.64877383,151.68,151.56,100.0]
[1719927820927,1.64852289,151.67,151.56,100.0]
[1719927821128,6.5596,151.7,151.6,100.0]
[1719927821348,6.5596,151.7,151.56,100.0]
[1719927821349,6.5931,151.68,151.56,100.0]
[1719927821647,8.20771894,151.7,151.56,100.0]
[1719927821648,1.64858184,151.67,151.56,100.0]
[1719927821824,1.64866028,151.69,151.57,100.0]
[1719927822025,1.64866028,151.69,151.55,100.0]
[1719927822647,1.64866028,151.69,151.59,100.0]
[1719927822946,6.5929,151.68,151.57,100.0]
[1719927823247,6.5934,151.67,151.58,20.0]
[1719927823450,1.64847215,151.66,151.55,100.0]
[1719927823749,1.64862855,151.65,151.54,1.98396779]
[1719927823948,16.4839,151.67,151.53,100.5]
[1719927823949,6.5953,151.63,151.53,0.5]
[1719927824243,18.13752066,151.63,151.53,0.5]
[1719927824449,1.64902546,151.69,151.54,100.0]
[1719927824624,16.4847,151.66,151.53,0.5]
[1719927824825,6.1443,151.59,151.53,0.5]
[1719927825222,16.4956,151.56,151.4,100.0]
[1719927825546,6.1443,151.59,151.38,0.8781655]
[1719927825547,1.65030108,151.55,151.38,17.3651655]
[1719927825722,6.6015,151.49,151.38,0.8781655]
[1719927825922,8.25208972,151.48,151.38,0.8781655]
[1719927826127,1.65058972,151.48,151.38,0.8781655]
[1719927826325,16.501,151.51,151.38,0.8781655]
[1719927826326,1.65059769,151.5,151.38,0.8781655]
[1719927826735,6.6034,151.44,151.38,0.8781655]
[1719927826952,1.65107419,151.43,151.38,0.8781655]
[1719927827251,6.6046,151.41,151.38,0.8781655]
[1719927827456,1.65141301,151.45,151.38,0.8781655]
[1719927827827,7.79554939,151.46,151.38,0.8781655]
[1719927828029,1.65087111,151.45,151.38,0.8781655]
[1719927828221,6.1443,151.46,151.38,0.8781655]
[1719927828427,1.65065569,151.45,151.38,0.8781655]
[1719927829055,7.79529938,151.46,151.38,0.8781655]
[1719927829252,1.65099938,151.45,151.38,0.8781655]
[1719927829436,7.79533519,151.46,151.38,0.8781655]
[1719927829756,6.1443,151.46,151.38,0.8781655]
[1719927830053,7.79509316,151.46,151.38,0.8781655]
[1719927830232,1.65085268,151.45,151.38,0.8781655]
[1719927830625,1.65085268,151.45,151.38,0.6859381]
[1719927830838,8.25385268,151.45,151.38,0.6859381]
[1719927831039,1.65085268,151.45,151.38,0.6859381]
[1719927831237,8.25365268,151.45,151.38,0.6859381]
[1719927832244,1.65085268,151.45,151.38,0.6859381]
[1719927833345,6.6045,151.42,151.38,0.6859381]
[1719927833532,1.6514772,151.41,151.38,0.6859381]
[1719927833931,8.25561858,151.42,151.38,0.6859381]
[1719927834132,1.65142321,151.41,151.38,0.6859381]
[1719927834854,6.605,151.4,151.38,0.6859381]
[1719927835062,8.25713966,151.39,151.27,0.8502963]
[1719927835362,1.65176742,151.43,151.28,100.0]
[1719927835550,1.65176742,151.43,151.27,0.8502963]
[1719927835740,6.6049,151.41,151.28,100.0]
[1719927836055,1.65168264,151.4,151.28,100.0]
[1719927836260,1.65154282,151.43,151.3,100.0]
[1719927836663,43.1043,151.46,151.3,100.0]
[1719927836664,1.65146876,151.45,151.3,100.0]
[1719927836841,6.604,151.43,151.3,100.0]
[1719927837217,8.25579175,151.42,151.3,100.0]
[1719927837461,8.25579175,151.42,151.27,0.8502963]
[1719927837462,6.605,151.4,151.27,0.8502963]
[1719927837634,1.65181556,151.39,151.27,20.8502963]
[1719927837834,1.65181556,151.39,151.27,0.8502963]
[1719927838044,8.25721556,151.39,151.27,0.8502963]
[1719927838261,6.606,151.38,151.27,0.8502963]
[1719927838429,1.65198358,151.37,151.27,0.8502963]
[1719927838865,1.65210955,151.41,151.3,100.0]
[1719927839055,6.1443,151.46,151.31,20.0]
[1719927839361,8.25431135,151.45,151.31,20.0]
[1719927839532,1.65141135,151.45,151.31,20.0]
[1719927839737,6.6049,151.41,151.27,20.8502963]
[1719927840054,8.25678161,151.4,151.27,20.8502963]
[1719927840252,1.65181975,151.39,151.27,20.8502963]
[1719927840453,6.605,151.4,151.28,20.0]
[1719927840642,1.65182059,151.39,151.28,20.0]
[1719927840848,6.6053,151.4,151.28,20.0]
[1719927841049,8.53062946,151.43,151.28,20.0]
[1719927841050,1.65181908,151.38,151.28,20.0]
[1719927841249,1.65176815,151.41,151.27,20.8502963]
[1719927841845,6.6059,151.38,151.27,20.8502963]
[1719927842049,1.6520135,151.37,151.27,0.8502963]
[1719927842252,6.6058,151.39,151.27,20.8502963]
[1719927842458,1.65202444,151.38,151.27,0.8502963]
[1719927842774,6.4971,151.36,151.27,0.8502963]
[1719927842950,1.65200664,151.35,151.27,0.8502963]
[1719927843450,6.6081,151.33,151.27,0.8502963]
[1719927843649,6.6081,151.33,151.14,100.0]
[1719927843650,1.65276587,151.32,151.14,100.0]
[1719927843869,6.6095,151.3,151.15,15.271]
[1719927844065,6.6103,151.28,151.14,200.0]
[1719927844282,1.65318238,151.27,151.13,101.201]
[1719927844454,1.65318238,151.27,151.13,16.5198]
[1719927844660,22.8541,151.26,151.13,16.5198]
[1719927844843,6.6129,151.22,151.12,0.8502963]
[1719927845042,1.65378677,151.21,151.12,0.8502963]
[1719927845273,1.65386913,151.2,151.12,0.8502963]
[1719927845479,6.6137,151.2,151.12,0.8502963]
[1719927845665,1.65422313,151.19,151.12,0.8502963]
[1719927846046,18.19062313,151.19,151.12,0.8502963]
[1719927846274,45.0,151.18,151.12,0.8502963]
[1719927846474,45.0,151.18,150.96,263.46601]
[1719927846475,1.65474129,151.17,150.96,263.46601]
[1719927846643,15.0286,151.15,150.96,163.46601]
[1719927846843,15.0286,151.15,150.96,36.96]
[1719927846844,1.65510406,151.14,150.96,36.96]
[1719927847071,6.6186,151.09,150.94,360.0]
[1719927847278,36.96,151.13,150.88,100.0]
[1719927847580,36.96,151.13,150.88,200.0]
[1719927847752,16.5496,151.07,150.88,100.0]
[1719927848274,36.96,151.09,150.88,100.0]
[1719927848450,6.6212,151.03,150.88,100.0]
[1719927848767,36.96,151.09,150.88,200.0]
[1719927848945,36.96,151.09,150.89,20.0]
[1719927849346,6.6202,151.06,150.89,100.0]
[1719927849546,6.6192,151.08,150.89,100.0]
[1719927849855,56.569,151.15,150.92,36.96]
[1719927850273,6.6175,151.12,150.92,236.96]
[1719927850452,31.569,151.15,150.89,100.0]
[1719927850649,36.96,151.1,150.87,100.0]
[1719927850866,6.4917,151.03,150.84,36.96]
[1719927851064,6.4917,151.03,150.83,100.0]
[1719927851256,6.4917,151.03,150.84,100.0]
[1719927851456,6.4917,151.03,150.83,101.99330689]
[1719927851753,16.3193,151.02,150.83,1.99330689]
[1719927851944,16.3193,151.02,150.84,100.0]
[1719927852149,16.3193,151.02,150.85,100.0]
[1719927852370,6.6221,151.01,150.83,136.96]
[1719927852569,16.3193,151.02,150.82,0.8502963]
[1719927852770,16.3193,151.02,150.81,216.5517]
[1719927852771,6.623,150.99,150.81,216.5517]
[1719927852964,16.5565,151.0,150.8,36.96]
[1719927854383,45.0,151.01,150.8,136.96]
[1719927854589,51.6224,151.01,150.84,100.0]
[1719927854887,16.3193,151.02,150.88,100.0]
[1719927855549,16.3193,151.02,150.91,100.0]
[1719927855753,16.3193,151.02,150.92,20.0]
[1719927856165,6.4917,151.03,150.93,100.0]
[1719927856349,6.87876527,151.09,150.95,100.0]
[1719927856350,12.93006527,151.09,150.95,100.0]
[1719927856559,6.0513,151.09,150.96,20.0]
[1719927857252,6.6203,151.05,150.91,20.0]
[1719927857587,30.0,150.97,150.83,36.96]
[1719927857872,30.0,150.97,150.85,100.0]
[1719927857873,6.241,150.96,150.85,100.0]
[1719927858253,6.241,150.96,150.83,36.96]
[1719927858452,30.0,150.94,150.86,100.0]
[1719927858755,30.0,150.94,150.81,36.96]
[1719927859078,30.0,150.94,150.79,0.8166171]
[1719927859079,10.22803665,150.94,150.79,37.7766171]
[1719927859854,10.22803665,150.94,150.8,101.99370344]
[1719927860053,10.22803665,150.94,150.82,100.0]
[1719927860478,10.22803665,150.94,150.85,100.0]
[1719927860672,10.22803665,150.94,150.84,100.0]
[1719927860852,10.22803665,150.94,150.83,100.0]
[1719927861059,10.22803665,150.94,150.83,200.0]
[1719927861256,10.22803665,150.94,150.85,100.0]
[1719927861466,16.3325,150.97,150.87,100.0]
[1719927861768,16.3325,150.97,150.88,20.0]
[1719927861961,6.1504,151.02,150.88,20.0]
[1719927861962,4.89790583,151.02,150.88,20.0]
[1719927862296,11.51950583,151.02,150.88,20.0]
[1719927862460,4.89790583,151.02,150.88,20.0]
[1719927862648,11.51990583,151.02,150.85,20.0]
[1719927862852,6.6222,151.01,150.85,20.0]
[1719927863475,4.89790583,151.02,150.86,100.0]
[1719927863675,4.89790583,151.02,150.87,20.0]
[1719927863882,4.89790583,151.02,150.88,100.0]
[1719927864054,4.89790583,151.02,150.87,20.0]
[1719927864055,4.89790583,151.02,150.89,20.0]
[1719927864252,4.89790583,151.02,150.88,100.0]
[1719927864557,4.89790583,151.02,150.89,20.0]
[1719927864958,21.19610583,151.02,150.89,20.0]